[Event "7th Sharjah Masters 2024"]
[Site "Sharjah"]
[Date "2024.05.19"]
[Round "6.34"]
[White "Moroni, Luca Jr"]
[Black "Yilmazyerli, Mert"]
[Result "1/2-1/2"]
[ECO "A18"]
[WhiteElo "2581"]
[BlackElo "2522"]
[Annotator "RC"]
[PlyCount "200"]
[EventDate "2024.05.13"]
[EventType "swiss"]
[EventCountry "UAE"]
[SourceTitle "playchess.com"]
[Source "ChessBase"]
[SourceQuality "1"]
[TimeControl "5400+30"]

1. c4 {[%emt 1:31:00]} Nf6 {[%emt 1:31:00]} 2. Nc3 {[%emt 0:00:30]} e6 {[%emt 0:00:30]} 3. e4 {[%emt 0:00:30]} d5 {[%emt 0:00:30]} 4. e5 {[%emt 0:00:30]} d4 {[%emt 0:00:30]} 5. exf6 {[%emt 0:00:30]} dxc3 {[%emt 0:00:30]} 6. bxc3 {[%emt 0:00:30]} Qxf6 {[%emt 0:00:30]} 7. Bd3 {[%emt 0:00:30]} Bd7 {[%emt 0:00:30]} 8. Nf3 {[%emt 0:00:30]} Bc6 {[%emt 0:00:30]} 9. Bc2 {[%emt 0:00:30]} Bxf3 {[%emt 0:00:30]} 10. Qxf3 {[%emt 0:00:30]} Qxf3 {[%emt 0:00:30]} 11. gxf3 {[%emt 0:00:30]} Nc6 {[%emt 0:00:30]} 12. d4 {[%emt 0:00:30]} O-O-O {[%emt 0:00:30]} 13. Rb1 {[%emt 0:00:30]} Na5 {[%emt 0:00:30]} 14. c5 {[%emt 0:00:30]} b6 {[%emt 0:00:30]} 15. Bd3 {[%emt 0:00:30]} Be7 {[%emt 0:00:30]} 16. Ke2 {[%emt 0:00:30]} Bf6 {[%emt 0:00:30]} 17. Rd1 {[%emt 0:00:30]} Rd5 {[%emt 0:00:30]} 18. Bf4 {[%emt 0:00:30]} Rh5 {[%emt 0:00:30]} 19. Ba6+ {[%emt 0:00:30]} Kd7 {[%emt 0:00:30]} 20. c4 {[%emt 0:00:30]} Bg5 {[%emt 0:00:30]} 21. Bg3 {[%emt 0:00:30]} Bh4 {[%emt 0:00:30]} 22. Be5 {[%emt 0:00:30]} f6 {[%emt 0:00:30]} 23. Bf4 {[%emt 0:00:30]} Bg5 {[%emt 0:00:30]} 24. Bg3 {[%emt 0:00:30]} Bh4 {[%emt 0:00:30]} 25. f4 {[%emt 0:00:30]} Bxg3 {[%emt 0:00:30]} 26. hxg3 {[%emt 0:00:30]} Ke7 {[%emt 0:00:30]} 27. Kf3 {[%emt 0:00:30]} Rd8 {[%emt 0:00:30]} 28. Kg2 {[%emt 0:00:30]} Rf5 {[%emt 0:00:30]} 29. d5 {[%emt 0:00:30]} exd5 {[%emt 0:00:30]} 30. cxb6 {[%emt 0:00:30]} axb6 {[%emt 0:00:30]} 31. c5 {[%emt 0:00:30]} Nc4 {[%emt 0:00:30]} 32. Rd3 {[%emt 0:00:30]} Ra8 {[%emt 0:00:30]} 33. Bb5 {[%emt 0:00:30]} bxc5 {[%emt 0:00:30]} 34. Re1+ {[%emt 0:00:30]} Kf8 {[%emt 0:00:30]} 35. Bd7 {[%emt 0:00:30]} Rh5 {[%emt 0:00:30]} 36. Bg4 {[%emt 0:00:30]} Rh6 {[%emt 0:00:30]} 37. Rxd5 {[%emt 0:00:30]} Nd6 {[%emt 0:00:30]} 38. Rxc5 {[%emt 0:00:30]} f5 {[%emt 0:00:30]} 39. Bf3 {[%emt 0:00:30]} Ra7 {[%emt 0:00:30]} 40. Bd5 {[%emt 0:00:30]} Rf6 {[%emt 0:00:30]} 41. f3 {[%emt 0:00:30]} h6 {[%emt 0:00:30]} 42. Rc2 {[%emt 0:00:30]} g5 {[%emt 0:00:30]} 43. fxg5 {[%emt 0:00:30]} hxg5 {[%emt 0:00:30]} 44. Rb2 {[%emt 0:00:30]} c5 {[%emt 0:00:30]} 45. Rb8+ {[%emt 0:00:30]} Kg7 {[%emt 0:00:30]} 46. Rg8+ {[%emt 0:00:30]} Kh7 {[%emt 0:00:30]} 47. Rxg5 {[%emt 0:00:30]} Rh6 {[%emt 0:00:30]} 48. Re2 {[%emt 0:00:30]} c4 {[%emt 0:00:30]} 49. Be6 {[%emt 0:00:30]} Rf6 {[%emt 0:00:30]} 50. Bd5 {[%emt 0:00:30]} Rh6 {[%emt 0:00:30]} 51. Bg8+ {[%emt 0:00:30]} Kh8 {[%emt 0:00:30]} 52. Be6 {[%emt 0:00:30]} Rg7 {[%emt 0:00:30]} 53. Rxg7 {[%emt 0:00:30]} Kxg7 {[%emt 0:00:30]} 54. Bd5 {[%emt 0:00:30]} c3 {[%emt 0:00:30]} 55. Rc2 {[%emt 0:00:30]} Nb5 {[%emt 0:00:30]} 56. Bc4 {[%emt 0:00:30]} Rb6 {[%emt 0:00:30]} 57. Kf2 {[%emt 0:00:30]} Na3 {[%emt 0:00:30]} 58. Rxc3 {[%emt 0:00:30]} Nxc4 {[%emt 0:00:30]} 59. Rxc4 {[%emt 0:00:30]} Rb2+ {[%emt 0:00:30]} 60. Ke3 {[%emt 0:00:30]} Rxa2 {[%emt 0:00:30]} 61. Kf4 {[%emt 0:00:30]} Ra3 {[%emt 0:00:30]} 62. Rc5 {[%emt 0:00:30]} Kg6 {[%emt 0:00:30]} 63. Rc6+ {[%emt 0:00:30]} Kf7 {[%emt 0:00:30]} 64. Rh6 {[%emt 0:00:30]} Rb3 {[%emt 0:00:30]} 65. Rh5 {[%emt 0:00:30]} Ke6 {[%emt 0:00:30]} 66. Rh8 {[%emt 0:00:30]} Kf6 {[%emt 0:00:30]} 67. Rf8+ {[%emt 0:00:30]} Kg6 {[%emt 0:00:30]} 68. Rd8 {[%emt 0:00:30]} Kf6 {[%emt 0:00:30]} 69. Rd6+ {[%emt 0:00:30]} Kf7 {[%emt 0:00:30]} 70. Rh6 {[%emt 0:00:30]} Ra3 {[%emt 0:00:30]} 71. Rh5 {[%emt 0:00:30]} Ke6 {[%emt 0:00:30]} 72. Rh8 {[%emt 0:00:30]} Kf6 {[%emt 0:00:30]} 73. Rf8+ {[%emt 0:00:30]} Kg6 {[%emt 0:00:30]} 74. Rd8 {[%emt 0:00:30]} Kf6 {[%emt 0:00:30]} 75. Rd4 {[%emt 0:00:30]} Rb3 {[%emt 0:00:30]} 76. Rd5 {[%emt 0:00:30]} Rb4+ {[%emt 0:00:30]} 77. Ke3 Rb3+ {[%emt 0:00:30]} 78. Rd3 {[%emt 0:01:00]} Rb6 {[%emt 0:00:30]} 79. f4 {[%emt 0:00:30]} Re6+ {[%emt 0:00:30]} 80. Kd4 {[%emt 0:00:30]} Re4+ {[%emt 0:00:30]} 81. Kc5 {[%emt 0:00:30]} Re1 {[%emt 0:00:30]} 82. Kc6 {[%emt 0:00:30]} Re2 {[%emt 0:00:30]} 83. Kd7 {[%emt 0:00:30]} Re1 {[%emt 0:00:30]} 84. Kc6 {[%emt 0:00:30]} Re2 {[%emt 0:00:30]} 85. Kc5 {[%emt 0:00:30]} Re1 {[%emt 0:00:30]} 86. Kd4 {[%emt 0:00:30]} Re4+ {[%emt 0:00:30]} 87. Kc3 {[%emt 0:00:30]} Re1 {[%emt 0:00:30]} 88. Kd2 {[%emt 0:00:30]} Ra1 {[%emt 0:00:30]} 89. Ke2 {[%emt 0:00:30]} Ra2+ {[%emt 0:00:30]} 90. Rd2 {[%emt 0:00:30]} Ra3 {[%emt 0:00:30]} 91. Kf2 {[%emt 0:00:30]} Ra8 {[%emt 0:00:30]} 92. Kg2 {[%emt 0:00:30]} Kg7 {[%emt 0:00:30]} 93. Rd6 {[%emt 0:00:30]} Rb8 {[%emt 0:00:30]} 94. Kh3 {[%emt 0:00:30]} Rh8+ {[%emt 0:00:30]} 95. Kg2 {[%emt 0:00:30]} Ra8 {[%emt 0:00:30]} 96. Rb6 {[%emt 0:00:30]} Rc8 {[%emt 0:00:30]} 97. Rb5 {[%emt 0:00:30]} Kg6 {[%emt 0:00:30]} 98. Kh3 {[%emt 0:00:30]} Rh8+ {[%emt 0:00:30]} 99. Kg2 {[%emt 0:00:30]} Ra8 {[%emt 0:00:30]} 100. Kh3 {[%emt 0:00:30]} Rh8+ {[%emt 0:00:30]} 1/2-1/2

[Event "7th Sharjah Masters 2024"]
[Site "Sharjah"]
[Date "2024.05.19"]
[Round "6.35"]
[White "Peralta, Fernando"]
[Black "Sivuk, Vitaly"]
[Result "0-1"]
[ECO "D35"]
[WhiteElo "2575"]
[BlackElo "2544"]
[Annotator "TA"]
[PlyCount "70"]
[EventDate "2024.05.13"]
[EventType "swiss"]
[EventCountry "UAE"]
[SourceTitle "playchess.com"]
[Source "ChessBase"]
[SourceQuality "1"]
[TimeControl "5400+30"]

{[%evp 13,70,20,40,10,23,23,28,2,10,9,36,37,63,75,86,79,63,73,126,100,105,119,143,134,168,158,193,184,183,179,183,142,160,148,141,126,159,159,138,53,184,38,17,-77,101,111,88,-287,-312,-292,-294,-477,-419,-477,-430,-500,-497,-482,-482]} 1. d4 {[%emt 0:00:03]} Nf6 {[%emt 0:00:10]} 2. c4 {[%emt 0:00:06]} e6 {[%emt 0:00:07]} 3. Nc3 {[%emt 0:00:10]} d5 {[%emt 0:00:10]} 4. cxd5 {[%emt 0:00:19]} exd5 {[%emt 0:00:07]} 5. Bg5 {[%emt 0:00:06]} Be7 {[%emt 0:00:10]} 6. e3 {[%emt 0:00:15]} h6 {[%emt 0:00:10]} 7. Bh4 {[%emt 0:00:25]} Bg4 {[%emt 0:00:16] D35: Queen's Gambit Declined: Exchange Variation.} 8. Nf3 {[%emt 0:00:51]} Nbd7 {[%emt 0:03:28]} 9. Bd3 {[%emt 0:02:03]} c6 {[%emt 0:01:59]} 10. O-O {[%emt 0:03:57]} O-O {[%emt 0:01:00]} 11. Qc2 {[%emt 0:00:12]} Ne8 {[%emt 0:14:52]} 12. Bg3 {[%emt 0:01:33]} Bd6 {[%emt 0:00:15]} 13. Ne5 $146 {[%emt 0:02:50]} ({Predecessor:} 13. Bxd6 Nxd6 14. Kh1 Qe7 15. Nd2 f5 16. f3 Bh5 17. Rae1 Rae8 18. Na4 Rf6 19. Rf2 {0-1 Makaremi,S (1869)-Cai,T (1675) CAN-ch U20 Toronto 2008 (8)}) 13... Bxe5 {[%emt 0:14:25]} 14. dxe5 {[%emt 0:00:21]} Qe7 {[%emt 0:03:45]} 15. f4 {[%emt 0:03:35]} f6 {[%emt 0:03:19]} (15... Nc5 $142) 16. h3 $16 {[%emt 0:20:02]} Bh5 {[%emt 0:00:26]} 17. Bh4 {[%emt 0:00:51]} Nc5 {[%emt 0:10:43]} 18. Bf5 {[%emt 0:03:39]} Kh8 {[%emt 0:05:17]} 19. Rae1 {[%emt 0:02:40]} a5 {[%emt 0:10:30]} 20. e4 {[%emt 0:11:40]} d4 {[%emt 0:02:35]} 21. exf6 {[%emt 0:05:49]} gxf6 {[%emt 0:00:08]} 22. e5 {[%emt 0:01:07]} dxc3 {[%emt 0:02:31]} 23. exf6 {[%emt 0:04:07]} (23. Qxc3 Na4 24. Qb3 Nc5 $16) (23. bxc3 $6 Qg7 $14) 23... Qd6 {[%emt 0:00:37]} 24. Qxc3 {[%emt 0:01:34]} (24. bxc3 $6 Nxf6 25. g4 Be8 $16) 24... Na4 {[%emt 0:03:16]} (24... Nxf6 $2 25. g4 $18) 25. Qe5 {[%emt 0:04:02]} Bf7 {[%emt 0:01:21]} 26. Bf2 {[%emt 0:20:41]} ({Better is} 26. Qe7 $1 $16 {[%cal Oe1e6] Re6! would now be deadly.} Qxe7 27. fxe7) 26... b6 {[%emt 0:01:46]} (26... Qxf6 $2 27. Bc2 Qxe5 (27... Nxb2 $2 28. Qe4 $18) 28. Rxe5 $16) (26... Bc4 $1 $14 27. Bc2 Bxf1 28. Rxf1 Rd8) 27. b3 {[%emt 0:03:58]} (27. Qe7 $18 {[%cal Oe1e6] Threatens to win with Re6!} Nc5 28. Rd1 Qxe7 29. fxe7) 27... Nc5 $14 {[%emt 0:00:26]} 28. Qc3 {[%emt 0:00:25] [#]} (28. Qe7 $11) 28... Nxf6 $2 {[%emt 0:09:00]} (28... Qxf6 $2 29. Bd4 $18) (28... Rd8 $1 $17) 29. Bd4 $16 {[%emt 0:00:42]} Bd5 {[%emt 0:03:08] [#]} 30. Re6 $2 {[%emt 0:06:48][%mdl 8192]} (30. Be5 $1 $16 {stays on course.} Qe7 31. Kh2) 30... Nxe6 $19 {[%emt 0:00:25]} 31. Bxf6+ {[%emt 0:00:04]} Kg8 {[%emt 0:01:09]} 32. Qg3+ $2 {[%emt 0:01:04]} (32. Rf2 Ng7 (32... Nxf4 33. Qg3+ Kf7 34. Qg7+ Ke8 35. Rxf4 $11) 33. Be5) 32... Ng5 $1 $19 {[%emt 0:00:10]} 33. Bxg5 {[%emt 0:00:20]} hxg5 {[%emt 0:00:51]} (33... Rxf5 $2 {is the wrong capture.} 34. Bxh6+ Kf7 35. Qg7+ Ke8 36. Re1+ Be6 (36... Kd8 $2 37. Bg5+ Rxg5 38. Qxg5+ Kc7 39. Re7+ $18) 37. Qg8+ Kd7 38. Qxa8 $18) ({Don't go for} 33... Qc5+ $2 34. Kh2 hxg5 35. Qxg5+ Kf7 36. Qg6+ Ke7 37. Re1+ Kd8 38. Qg5+ Kc7 39. Re7+ Kb8 40. Qg7 $18) 34. Qxg5+ {[%emt 0:00:09]} Kf7 {[%emt 0:00:24]} 35. Re1 {[%emt 0:01:01]} Rg8 {[%emt 0:01:09]} 0-1

[Event "7th Sharjah Masters 2024"]
[Site "Sharjah"]
[Date "2024.05.19"]
[Round "6.36"]
[White "Sanal, Vahap"]
[Black "Nikitenko, Mihail"]
[Result "1-0"]
[ECO "C01"]
[WhiteElo "2566"]
[BlackElo "2529"]
[Annotator "RC"]
[PlyCount "123"]
[EventDate "2024.05.13"]
[EventType "swiss"]
[EventCountry "UAE"]
[SourceTitle "playchess.com"]
[Source "ChessBase"]
[SourceQuality "1"]
[TimeControl "5400+30"]

1. e4 {[%emt 0:00:04]} e6 {[%emt 0:00:06]} 2. d4 {[%emt 0:00:08]} d5 {[%emt 0:00:05]} 3. Nc3 {[%emt 0:00:42]} Nf6 {[%emt 0:00:05]} 4. exd5 {[%emt 0:00:18]} exd5 {[%emt 0:01:36]} 5. Bg5 {[%emt 0:00:09]} Be7 {[%emt 0:00:40]} 6. Bd3 {[%emt 0:02:25]} h6 {[%emt 0:01:46]} 7. Bf4 {[%emt 0:03:43]} a6 {[%emt 0:02:07]} 8. Qd2 {[%emt 0:01:12]} Nc6 {[%emt 0:02:42]} 9. Nge2 {[%emt 0:01:14]} Nb4 {[%emt 0:00:36]} 10. O-O-O {[%emt 0:00:26]} Be6 {[%emt 0:01:26]} 11. f3 {[%emt 0:00:40]} b6 {[%emt 0:04:55]} 12. Be5 {[%emt 0:02:35]} c5 {[%emt 0:02:58]} 13. Nf4 {[%emt 0:00:40]} O-O {[%emt 0:00:04]} 14. g4 {[%emt 0:16:57]} Nd7 {[%emt 0:07:19]} 15. Bf5 {[%emt 0:02:06]} Nxe5 {[%emt 0:01:52]} 16. dxe5 {[%emt 0:00:23]} d4 {[%emt 0:02:35]} 17. Nxe6 {[%emt 0:07:44]} fxe6 {[%emt 0:00:08]} 18. Bxe6+ {[%emt 0:00:06]} Kh8 {[%emt 0:00:02]} 19. Ne4 {[%emt 0:01:11]} Rxf3 {[%emt 0:00:24]} 20. g5 {[%emt 0:04:10]} Bxg5 {[%emt 0:04:37]} 21. Nxg5 {[%emt 0:00:13]} Qxg5 {[%emt 0:00:03]} 22. Qxg5 {[%emt 0:02:34]} hxg5 {[%emt 0:00:03]} 23. h4 {[%emt 0:10:35]} g4 {[%emt 0:00:11]} 24. a3 {[%emt 0:03:50]} Re8 {[%emt 0:00:04]} 25. Bxg4 {[%emt 0:00:33]} Rf4 {[%emt 0:00:08]} 26. Bd7 {[%emt 0:01:23]} Re7 {[%emt 0:00:05]} 27. e6 {[%emt 0:07:39]} Nd5 {[%emt 0:00:03]} 28. Rdf1 {[%emt 0:00:09]} Rxf1+ {[%emt 0:02:32]} 29. Rxf1 {[%emt 0:01:12]} Nf6 {[%emt 0:00:04]} 30. Bc8 {[%emt 0:00:06]} a5 {[%emt 0:02:08]} 31. Re1 {[%emt 0:00:19]} g6 {[%emt 0:01:51]} 32. b4 {[%emt 0:01:28]} axb4 {[%emt 0:00:12]} 33. axb4 {[%emt 0:00:04]} Rc7 {[%emt 0:02:24]} 34. Rf1 {[%emt 0:04:44]} Kg7 {[%emt 0:09:06]} 35. Bd7 {[%emt 0:00:20]} Ra7 {[%emt 0:00:50]} 36. Kb2 {[%emt 0:01:24]} cxb4 {[%emt 0:04:56]} 37. Rf4 {[%emt 0:00:10]} Rc7 {[%emt 0:05:07]} 38. Rxd4 {[%emt 0:01:38]} Kf8 {[%emt 0:00:03]} 39. Ba4 {[%emt 0:04:11]} Ke7 {[%emt 0:01:23]} 40. Bb3 {[%emt 0:00:05]} Rc5 {[%emt 0:00:27]} 41. Rxb4 {[%emt 0:00:06]} b5 {[%emt 0:00:26]} 42. Rd4 {[%emt 0:00:47]} g5 {[%emt 0:00:33]} 43. hxg5 {[%emt 0:00:48]} Rxg5 {[%emt 0:00:04]} 44. Ka3 {[%emt 0:00:30]} Re5 {[%emt 0:04:59]} 45. Rd2 {[%emt 0:02:06]} Re4 {[%emt 0:00:46]} 46. Rf2 {[%emt 0:00:09]} Re5 {[%emt 0:00:44]} 47. Rd2 {[%emt 0:01:03]} Re4 {[%emt 0:00:03]} 48. Rd1 {[%emt 0:00:18]} Rf4 {[%emt 0:01:47]} 49. Kb2 {[%emt 0:01:24]} Re4 {[%emt 0:03:20]} 50. Kc3 {[%emt 0:03:03]} b4+ {[%emt 0:01:03]} 51. Kd3 {[%emt 0:00:07]} Rh4 {[%emt 0:00:45]} 52. Ra1 {[%emt 0:00:12]} Rh8 {[%emt 0:05:51]} 53. Ra7+ {[%emt 0:00:47]} Kd6 {[%emt 0:00:02]} 54. Ra6+ {[%emt 0:00:22]} Ke7 {[%emt 0:00:04]} 55. Rb6 {[%emt 0:00:42]} Rd8+ {[%emt 0:00:07]} 56. Kc4 {[%emt 0:01:45]} Nd5 {[%emt 0:00:23]} 57. Rc6 {[%emt 0:03:15]} Rd6 {[%emt 0:00:57]} 58. Rc5 {[%emt 0:00:30]} Nf4 {[%emt 0:03:07]} 59. Rc7+ {[%emt 0:02:47]} Kf6 {[%emt 0:03:34]} 60. Rf7+ {[%emt 0:00:07]} Ke5 {[%emt 0:00:15]} 61. e7 {[%emt 0:00:30]} Re6 {[%emt 0:00:03]} 62. Kc5 {[%emt 0:10:42]} 1-0

[Event "7th Sharjah Masters 2024"]
[Site "Sharjah"]
[Date "2024.05.19"]
[Round "6.37"]
[White "Madaminov, Mukhiddin"]
[Black "Kadric, Denis"]
[Result "1-0"]
[ECO "C43"]
[WhiteElo "2506"]
[BlackElo "2558"]
[Annotator "TA"]
[PlyCount "103"]
[EventDate "2024.05.13"]
[EventType "swiss"]
[EventCountry "UAE"]
[SourceTitle "playchess.com"]
[Source "ChessBase"]
[SourceQuality "1"]
[TimeControl "5400+30"]

{[%evp 15,103,0,18,0,0,-1,35,28,25,7,4,-14,0,0,0,0,0,0,0,0,0,0,0,-16,0,0,0,0,0,-16,0,0,0,0,2,0,0,0,0,0,0,0,0,0,0,0,0,0,16,16,16,16,16,16,16,16,16,16,102,16,16,16,16,8,16,0,16,0,16,16,212,212,212,199,190,147,172,172,172,172,699,676,691,744,5089,5081,4622,1785,29978,29979]} 1. e4 {[%emt 0:00:58]} e5 {[%emt 0:00:04]} 2. Nf3 {[%emt 0:00:27]} Nf6 {[%emt 0:00:05]} 3. d4 {[%emt 0:00:36]} Nxe4 {[%emt 0:00:06]} 4. Bd3 {[%emt 0:00:09]} Nc6 {[%emt 0:00:03]} 5. O-O {[%emt 0:01:02]} d5 {[%emt 0:00:45]} 6. dxe5 {[%emt 0:01:35]} Bg4 {[%emt 0:00:06][%cal Bc8g4,Bg4h5,Bh5g6][%mdl 32]} 7. Nc3 {[%emt 0:00:32]} Nxc3 {[%emt 0:00:04]} 8. bxc3 {[%emt 0:00:11]} Bc5 {[%emt 0:00:01]} 9. Re1 {[%emt 0:00:30]} Qd7 {[%emt 0:00:55]} 10. Rb1 {[%emt 0:01:53]} Bb6 {[%emt 0:00:21]} 11. h3 {[%emt 0:10:58] White is slightly better.} Bh5 {[%emt 0:00:09]} 12. g4 {[%emt 0:19:10]} Bg6 {[%emt 0:00:04] Prevents Bf5.} 13. Rb5 {[%emt 0:00:15] [#] And now Bxg6 would win.} O-O-O {[%emt 0:19:22]} 14. Bg5 $1 {[%emt 0:01:13]} Ne7 {[%emt 0:01:08]} 15. Bxe7 {[%emt 0:20:36]} Qxe7 {[%emt 0:00:13]} 16. Bxg6 {[%emt 0:00:10]} hxg6 {[%emt 0:01:28]} 17. Rxd5 {[%emt 0:00:49]} Rxh3 {[%emt 0:24:01] Strongly threatening ...Rdh8.} 18. Rxd8+ {[%emt 0:06:11]} Qxd8 {[%emt 0:00:03]} 19. Qxd8+ {[%emt 0:02:32]} Kxd8 $11 {[%emt 0:00:02][%mdl 4096] Endgame. KRB-KRN} 20. Kg2 {[%emt 0:00:17] Inhibits Rg3+.} Rh8 {[%emt 0:00:02]} 21. Ng5 {[%emt 0:00:35]} Ke7 {[%emt 0:00:02]} 22. Rd1 {[%emt 0:00:08]} Rf8 {[%emt 0:03:23]} 23. f4 {[%emt 0:03:19]} c6 {[%emt 0:09:40]} 24. c4 {[%emt 0:03:38]} Bc7 {[%emt 0:13:42]} 25. Kf3 {[%emt 0:01:51]} f6 {[%emt 0:04:38]} 26. exf6+ {[%emt 0:00:11]} Rxf6 {[%emt 0:00:03]} 27. Rd4 {[%emt 0:00:23]} c5 {[%emt 0:00:21]} 28. Re4+ {[%emt 0:00:18]} Kd7 {[%emt 0:00:51]} 29. Nh7 {[%emt 0:00:17]} Rf7 {[%emt 0:01:59]} 30. Ke3 {[%emt 0:00:51]} (30. Ng5 $5 Rf6 $8 31. Nh7 $11) 30... Bd8 {[%emt 0:02:28]} 31. Re5 {[%emt 0:01:33][%cal Oh7g5]} Be7 {[%emt 0:00:49]} 32. Rd5+ {[%emt 0:03:32]} Kc6 {[%emt 0:03:00]} 33. Ng5 {[%emt 0:01:12]} Bxg5 {[%emt 0:08:20]} 34. Rxg5 {[%emt 0:00:10] KR-KR} Rf6 {[%emt 0:00:31]} 35. Re5 {[%emt 0:03:10]} Kd6 {[%emt 0:03:04] Wards off Re7} 36. Kf3 {[%emt 0:01:14]} Rf8 {[%emt 0:00:37] [#]} (36... b6 $11) 37. Kg3 {[%emt 0:02:31]} (37. Rd5+ $1 $16 Kc6 38. Ke4) 37... b6 {[%emt 0:00:01]} 38. Re3 {[%emt 0:03:39]} Rf7 {[%emt 0:01:21]} 39. Re2 {[%emt 0:01:24]} Rf8 {[%emt 0:00:05]} 40. Re3 {[%emt 0:01:15]} Rf7 {[%emt 0:00:06]} 41. Rf3 {[%emt 0:00:56]} Ke6 {[%emt 0:01:34]} 42. Kh4 {[%emt 0:00:32]} Rd7 $2 {[%emt 0:00:00] Loses the game.} (42... Kf6 $11) 43. Kg5 $18 {[%emt 0:01:07]} Kf7 {[%emt 0:00:16]} 44. Rd3 {[%emt 0:01:25]} Re7 {[%emt 0:03:41]} 45. c3 {[%emt 0:00:41]} Re4 {[%emt 0:00:19][%cal Of7e8]} 46. Rd7+ {[%emt 0:00:28]} Kf8 {[%emt 0:00:01]} 47. Rxa7 {[%emt 0:00:35]} (47. Kxg6 $6 Rxf4 48. g5 (48. Rxa7 Rxg4+ 49. Kf5 Rxc4 $15) 48... Rxc4 $11) 47... Rxc4 $2 {[%emt 0:00:00]} (47... Re6 48. Ra8+ Kf7) 48. Rb7 {[%emt 0:00:19]} ({Less strong is} 48. Kxg6 Rxf4 49. g5 (49. Rxg7 $2 Rxg4+ 50. Kf5 Rxg7 $19) 49... Rf3 $16) 48... Rxc3 {[%emt 0:00:12]} 49. Kxg6 {[%emt 0:00:13]} (49. Rxb6 Ra3 $11) 49... Rc1 {[%emt 0:01:34]} 50. f5 {[%emt 0:00:29][%cal Og4g5] Hoping for g5!} ({Inferior is} 50. Rxb6 Rc4 $11) 50... c4 {[%emt 0:00:02]} 51. g5 {[%emt 0:00:46]} (51. Rb8+ $142 Ke7 52. Kxg7 (52. Rxb6 Kd7 $18)) 51... c3 {[%emt 0:00:00]} 52. Rxg7 {[%emt 0:00:42] Weighted Error Value: White=0.08 (flawless) /Black=0.41.  Loses game:     	---       	Black=1      Mistake:       	White=1     	Black=2      Inaccurate:     	---       	Black=1      OK:         	White=18    	Black=20     Best:        	White=4     	Black=1      Strong:       	White=1     	---} 1-0

[Event "7th Sharjah Masters 2024"]
[Site "Sharjah"]
[Date "2024.05.19"]
[Round "6.38"]
[White "Samant Aditya S"]
[Black "Sjugirov, Sanan"]
[Result "0-1"]
[ECO "B90"]
[WhiteElo "2501"]
[BlackElo "2692"]
[Annotator "TA"]
[PlyCount "92"]
[EventDate "2024.05.13"]
[EventType "swiss"]
[EventCountry "UAE"]
[SourceTitle "playchess.com"]
[Source "ChessBase"]
[SourceQuality "1"]
[TimeControl "5400+30"]

{[%evp 19,92,18,26,29,20,22,11,24,32,22,19,29,33,23,27,41,36,0,0,-29,-27,-29,-33,-27,-31,-41,-32,-32,-37,-43,-12,-11,-16,-12,-8,-54,-54,-50,-58,-96,-68,-200,-215,-213,-163,-367,-184,-140,-8,-62,-74,-67,-70,-586,-542,-607,-594,-603,-469,-594,-581,-668,-667,-1079,-1009,-1404,-1535,-1642,-1197,-2133,-2095,-5616,-4602,-2339,-2413]} 1. e4 {[%emt 0:00:03]} c5 {[%emt 0:00:06]} 2. Nf3 {[%emt 0:00:04]} d6 {[%emt 0:00:07]} 3. d4 {[%emt 0:00:04]} cxd4 {[%emt 0:00:05]} 4. Nxd4 {[%emt 0:00:05]} Nf6 {[%emt 0:00:06]} 5. Nc3 {[%emt 0:00:05]} a6 {[%emt 0:00:05]} 6. Be3 {[%emt 0:00:50]} e5 {[%emt 0:00:18]} 7. Nf3 {[%emt 0:00:17]} Be7 {[%emt 0:00:16]} 8. Bc4 {[%emt 0:00:42]} Be6 {[%emt 0:00:05]} 9. Bxe6 {[%emt 0:04:12] B90: Sicilian Najdorf: Unusual White 6th moves, 6 Be3 Ng4 and 6 Be3 e5.} fxe6 {[%emt 0:00:06]} 10. Ng5 {[%emt 0:00:03]} Qd7 {[%emt 0:28:05]} 11. Qf3 $1 {[%emt 0:00:24]} d5 {[%emt 0:03:42]} 12. O-O-O {[%emt 0:00:20]} d4 {[%emt 0:03:32]} 13. Bxd4 {[%emt 0:01:16]} exd4 {[%emt 0:00:28]} 14. e5 {[%emt 0:00:07]} Nc6 {[%emt 0:04:38]} 15. exf6 {[%emt 0:01:56]} Bxf6 {[%emt 0:00:16]} 16. Qh5+ {[%emt 0:41:48]} g6 {[%emt 0:02:15]} 17. Nce4 {[%emt 0:06:20]} O-O {[%emt 0:03:42]} 18. Qg4 $146 {[%emt 0:07:10]} ({Predecessor:} 18. Nxf6+ Rxf6 19. Qh4 Raf8 20. f3 e5 21. Kb1 Rf5 22. Ne4 Nb4 23. c3 Nd5 24. Qf2 {½-½ Kong,X (2193)-Xu,Y (2558) China zt 3.5 2023 (1)}) 18... Bxg5+ {[%emt 0:03:50]} 19. Nxg5 {[%emt 0:01:37]} Rxf2 {[%emt 0:02:25]} 20. Qxe6+ {[%emt 0:07:06]} Qxe6 {[%emt 0:00:20]} 21. Nxe6 {[%emt 0:00:03]} Rxg2 {[%emt 0:21:13]} 22. Nxd4 {[%emt 0:00:23]} Nxd4 {[%emt 0:00:30]} 23. Rxd4 {[%emt 0:00:04]} Rf8 {[%emt 0:00:12]} 24. h4 {[%emt 0:06:45]} Kg7 {[%emt 0:02:11]} 25. a4 {[%emt 0:06:35]} Rf7 {[%emt 0:10:52]} 26. b3 {[%emt 0:08:57]} h5 {[%emt 0:00:52]} 27. Rhd1 {[%emt 0:01:49]} (27. Rb4 $11) 27... Kh6 $15 {[%emt 0:06:09]} 28. Kb2 {[%emt 0:04:17]} Rg4 {[%emt 0:00:32]} 29. Kc3 {[%emt 0:00:58]} Rf3+ {[%emt 0:02:05]} 30. Kc4 {[%emt 0:00:33] [#]} (30. Kb2 $15) 30... Rff4 $1 $19 {[%emt 0:01:43]} 31. c3 {[%emt 0:00:33]} ({Don't play} 31. Rxf4 Rxf4+ 32. Kc5 (32. Rd4 $2 Rxd4+ 33. Kxd4 g5 $19) 32... Rxh4) 31... Rxh4 {[%emt 0:00:28]} 32. Kc5 $2 {[%emt 0:00:01]} (32. b4) 32... Rf5+ $19 {[%emt 0:00:22]} 33. Kb6 {[%emt 0:00:06]} Rh3 {[%emt 0:00:58]} (33... Rxd4 $17 34. cxd4 Rf7) 34. Kxb7 $11 {[%emt 0:00:28]} Rxc3 {[%emt 0:00:07]} 35. b4 {[%emt 0:00:05]} Rf6 {[%emt 0:03:15]} 36. b5 $2 {[%emt 0:01:18][%mdl 8192] [#]} (36. Rd6 $15 Rxd6 37. Rxd6) 36... axb5 $1 $19 {[%emt 0:00:09]} 37. axb5 {[%emt 0:00:02]} Rb3 {[%emt 0:00:43]} 38. Rd5 {[%emt 0:00:01]} h4 {[%emt 0:00:44]} 39. Kc7 {[%emt 0:00:46]} g5 {[%emt 0:01:01]} 40. Rg1 {[%emt 0:00:59]} Rg6 {[%emt 0:00:18]} 41. Kd7 {[%emt 0:00:34]} h3 {[%emt 0:00:34]} 42. Ke7 {[%emt 0:00:29]} g4 {[%emt 0:01:02]} 43. Rh1 {[%emt 0:00:04]} Rg5 {[%emt 0:00:25]} 44. Rd6+ {[%emt 0:00:02]} Kh5 {[%emt 0:00:08]} 45. b6 {[%emt 0:00:13]} Rg6 {[%emt 0:00:34]} 46. Rd5+ {[%emt 0:00:36]} Kh4 {[%emt 0:00:15]} 0-1